[Event "Titled Tuesday Blitz February 28 Late 2023"]
[White "Mujumdar, Sameer"]
[Black "Liu, Eric"]
[WhiteFideId "2029707"]
[BlackFideId "30960240"]
[WhiteElo "2104"]
[BlackElo "2094"]
[Result "1-0"]
[Round "11"]
[TimeControl "180+2"]
[Date "2023.02.28"]
[WhiteClock "0:00:39"]
[BlackClock "0:01:36"]

1. e4 {[%clk 0:03:00]}  g6 {[%clk 0:02:57]} 2. h4 {[%clk 0:03:00]}  Bg7 {[%clk 0:02:58]} 3. h5 {[%clk 0:03:00]}  c6 {[%clk 0:02:55]} 4. d4 {[%clk 0:02:56]}  d5 {[%clk 0:02:55]} 5. h6 {[%clk 0:02:55]}  Bf8 {[%clk 0:02:54]} 6. e5 {[%clk 0:02:55]}  e6 {[%clk 0:02:50]} 7. Nf3 {[%clk 0:02:54]}  c5 {[%clk 0:02:51]} 8. c3 {[%clk 0:02:54]}  Nc6 {[%clk 0:02:51]} 9. a3 {[%clk 0:02:45]}  c4 {[%clk 0:02:50]} 10. Be3 {[%clk 0:02:31]}  Na5 {[%clk 0:02:50]} 11. Nbd2 {[%clk 0:02:30]}  Bd7 {[%clk 0:02:51]} 12. a4 {[%clk 0:02:27]}  Ne7 {[%clk 0:02:48]} 13. b3 {[%clk 0:02:24]}  cxb3 {[%clk 0:02:37]} 14. Nxb3 {[%clk 0:02:25]}  Nec6 {[%clk 0:02:35]} 15. Bd3 {[%clk 0:02:04]}  Rc8 {[%clk 0:02:32]} 16. Nc5 {[%clk 0:01:50]}  b6 {[%clk 0:02:30]} 17. Bg5 {[%clk 0:01:44]}  Qc7 {[%clk 0:02:27]} 18. Na6 {[%clk 0:01:29]}  Qb7 {[%clk 0:02:27]} 19. Bf6 {[%clk 0:01:30]}  Rg8 {[%clk 0:02:27]} 20. Ng5 {[%clk 0:01:31]}  Nc4 {[%clk 0:02:19]} 21. Bxc4 {[%clk 0:01:26]}  dxc4 {[%clk 0:02:20]} 22. Nxh7 {[%clk 0:01:07]}  Qxa6 {[%clk 0:02:18]} 23. Ng5 {[%clk 0:01:07]}  Bxh6 {[%clk 0:02:18]} 24. Rxh6 {[%clk 0:01:08]}  Ne7 {[%clk 0:02:06]} 25. Bxe7 {[%clk 0:01:02]}  Kxe7 {[%clk 0:02:07]} 26. Qf3 {[%clk 0:01:02]}  Rcf8 {[%clk 0:02:07]} 27. Qf6+ {[%clk 0:01:01]}  Ke8 {[%clk 0:02:07]} 28. Ne4 {[%clk 0:01:01]}  Bc6 {[%clk 0:02:05]} 29. Nd6+ {[%clk 0:01:01]}  Kd7 {[%clk 0:02:05]} 30. Rh7 {[%clk 0:01:00]}  Bd5 {[%clk 0:01:55]} 31. Rxf7+ {[%clk 0:00:58]}  Kc6 {[%clk 0:01:52]} 32. Rxf8 {[%clk 0:00:56]}  Qa5 {[%clk 0:01:51]} 33. Kd2 {[%clk 0:00:51]}  Rxf8 {[%clk 0:01:36]} 34. Qxf8 {[%clk 0:00:50]}  Bxg2 {[%clk 0:01:36]} 35. Qc8+ {[%clk 0:00:39]}  Kd5 {[%clk 0:01:36]} 36. Qb7# {[%clk 0:00:39]} 1-0


[Site "https://www.chess.com"]

[Event "Titled Tuesday Blitz February 28 Late 2023"]
[White "Martic, Ivan"]
[Black "Sreyas Payyappat"]
[WhiteFideId "929301"]
[BlackFideId "46674969"]
[WhiteElo "2360"]
[BlackElo "2083"]
[Result "0-1"]
[Round "11"]
[TimeControl "180+2"]
[Date "2023.02.28"]
[WhiteClock "0:01:19"]
[BlackClock "0:01:11"]

1. d4 {[%clk 0:03:00]}  Nf6 {[%clk 0:02:59]} 2. Bg5 {[%clk 0:03:00]}  c5 {[%clk 0:03:00]} 3. Bxf6 {[%clk 0:02:59]}  exf6 {[%clk 0:02:58]} 4. Nc3 {[%clk 0:02:57]}  d5 {[%clk 0:02:48]} 5. e3 {[%clk 0:02:55]}  Nc6 {[%clk 0:02:44]} 6. Bb5 {[%clk 0:02:51]}  Be6 {[%clk 0:02:43]} 7. Nge2 {[%clk 0:02:48]}  Be7 {[%clk 0:02:40]} 8. O-O {[%clk 0:02:40]}  O-O {[%clk 0:02:40]} 9. dxc5 {[%clk 0:02:30]}  Bxc5 {[%clk 0:02:41]} 10. Na4 {[%clk 0:02:27]}  Bd6 {[%clk 0:02:31]} 11. Nd4 {[%clk 0:02:23]}  Ne5 {[%clk 0:02:28]} 12. h3 {[%clk 0:02:17]}  a6 {[%clk 0:02:25]} 13. Be2 {[%clk 0:02:16]}  b5 {[%clk 0:02:24]} 14. Nc3 {[%clk 0:02:16]}  b4 {[%clk 0:02:24]} 15. Na4 {[%clk 0:02:12]}  Bd7 {[%clk 0:02:18]} 16. c3 {[%clk 0:02:09]}  Qa5 {[%clk 0:02:11]} 17. b3 {[%clk 0:02:06]}  bxc3 {[%clk 0:02:08]} 18. Rc1 {[%clk 0:02:05]}  Bxa4 {[%clk 0:02:07]} 19. bxa4 {[%clk 0:02:06]}  Rfc8 {[%clk 0:02:04]} 20. Nb3 {[%clk 0:02:04]}  Qxa4 {[%clk 0:01:58]} 21. Qxd5 {[%clk 0:02:04]}  Qxa2 {[%clk 0:01:53]} 22. Rxc3 {[%clk 0:01:56]}  Rd8 {[%clk 0:01:17]} 23. Qd2 {[%clk 0:01:26]}  Qxd2 {[%clk 0:01:14]} 24. Nxd2 {[%clk 0:01:27]}  Bb4 {[%clk 0:01:14]} 25. Rc2 {[%clk 0:01:25]}  Rxd2 {[%clk 0:01:13]} 26. Rxd2 {[%clk 0:01:24]}  Bxd2 {[%clk 0:01:14]} 27. Rd1 {[%clk 0:01:24]}  Bb4 {[%clk 0:01:14]} 28. f4 {[%clk 0:01:23]}  Ng6 {[%clk 0:01:12]} 29. g3 {[%clk 0:01:19]}  h6 {[%clk 0:01:11]} 0-1


[Site "https://www.chess.com"]

[Event "Titled Tuesday Blitz February 28 Late 2023"]
[White "Mazurkiewicz, Michal"]
[Black "Rosen, Eric"]
[WhiteFideId "1124943"]
[BlackFideId "2032562"]
[WhiteElo "2054"]
[BlackElo "2359"]
[Result "1-0"]
[Round "11"]
[TimeControl "180+2"]
[Date "2023.02.28"]
[WhiteClock "0:00:09"]
[BlackClock "0:00:03"]

1. e4 {[%clk 0:02:58]}  e5 {[%clk 0:03:00]} 2. Nf3 {[%clk 0:02:59]}  Nf6 {[%clk 0:03:01]} 3. d3 {[%clk 0:02:59]}  Bc5 {[%clk 0:03:01]} 4. Nxe5 {[%clk 0:02:44]}  Nc6 {[%clk 0:03:01]} 5. Nf3 {[%clk 0:02:41]}  d5 {[%clk 0:02:56]} 6. e5 {[%clk 0:02:23]}  Ng4 {[%clk 0:02:56]} 7. d4 {[%clk 0:02:22]}  Nxd4 {[%clk 0:02:56]} 8. Nxd4 {[%clk 0:02:20]}  Nxf2 {[%clk 0:02:56]} 9. Kxf2 {[%clk 0:02:10]}  Qh4+ {[%clk 0:02:56]} 10. g3 {[%clk 0:01:33]}  Qe4 {[%clk 0:02:56]} 11. Be3 {[%clk 0:01:22]}  Qxh1 {[%clk 0:02:53]} 12. Bb5+ {[%clk 0:01:22]}  c6 {[%clk 0:02:50]} 13. Qxh1 {[%clk 0:01:18]}  cxb5 {[%clk 0:02:50]} 14. Nxb5 {[%clk 0:01:08]}  Bxe3+ {[%clk 0:02:48]} 15. Kxe3 {[%clk 0:01:09]}  O-O {[%clk 0:02:48]} 16. N1c3 {[%clk 0:01:04]}  Bd7 {[%clk 0:02:42]} 17. Nc7 {[%clk 0:01:01]}  Bc6 {[%clk 0:02:42]} 18. N7xd5 {[%clk 0:00:48]}  Kh8 {[%clk 0:02:40]} 19. Rd1 {[%clk 0:00:46]}  Rae8 {[%clk 0:02:38]} 20. Kf4 {[%clk 0:00:42]}  b5 {[%clk 0:02:21]} 21. a3 {[%clk 0:00:42]}  a5 {[%clk 0:02:21]} 22. b4 {[%clk 0:00:42]}  h6 {[%clk 0:02:03]} 23. h4 {[%clk 0:00:42]}  Rc8 {[%clk 0:01:39]} 24. g4 {[%clk 0:00:37]}  Bb7 {[%clk 0:01:34]} 25. Rd4 {[%clk 0:00:34]}  Rxc3 {[%clk 0:01:31]} 26. g5 {[%clk 0:00:32]}  h5 {[%clk 0:01:24]} 27. Qd1 {[%clk 0:00:31]}  Bxd5 {[%clk 0:01:12]} 28. Qxh5+ {[%clk 0:00:23]}  Kg8 {[%clk 0:01:12]} 29. Rxd5 {[%clk 0:00:23]}  Rfc8 {[%clk 0:00:50]} 30. Rc5 {[%clk 0:00:21]}  R8xc5 {[%clk 0:00:38]} 31. bxc5 {[%clk 0:00:22]}  Rxc5 {[%clk 0:00:39]} 32. Qe2 {[%clk 0:00:21]}  Rc4+ {[%clk 0:00:36]} 33. Kg3 {[%clk 0:00:20]}  Rc3+ {[%clk 0:00:28]} 34. Kg4 {[%clk 0:00:19]}  Rc4+ {[%clk 0:00:27]} 35. Qxc4 {[%clk 0:00:15]}  bxc4 {[%clk 0:00:25]} 36. Kf4 {[%clk 0:00:16]}  Kh7 {[%clk 0:00:22]} 37. h5 {[%clk 0:00:16]}  Kg8 {[%clk 0:00:14]} 38. g6 {[%clk 0:00:16]}  Kf8 {[%clk 0:00:11]} 39. Ke4 {[%clk 0:00:16]}  Ke7 {[%clk 0:00:11]} 40. Kd5 {[%clk 0:00:09]}  fxg6 {[%clk 0:00:09]} 41. hxg6 {[%clk 0:00:09]}  c3 {[%clk 0:00:10]} 42. e6 {[%clk 0:00:08]}  a4 {[%clk 0:00:06]} 43. Ke5 {[%clk 0:00:06]}  Ke8 {[%clk 0:00:05]} 44. Kd4 {[%clk 0:00:03]}  Ke7 {[%clk 0:00:06]} 45. Kxc3 {[%clk 0:00:03]}  Kxe6 {[%clk 0:00:07]} 46. Kb4 {[%clk 0:00:03]}  Kf6 {[%clk 0:00:07]} 47. c4 {[%clk 0:00:04]}  Kxg6 {[%clk 0:00:08]} 48. c5 {[%clk 0:00:05]}  Kf7 {[%clk 0:00:08]} 49. Kb5 {[%clk 0:00:05]}  g5 {[%clk 0:00:08]} 50. c6 {[%clk 0:00:05]}  Ke7 {[%clk 0:00:08]} 51. Kb6 {[%clk 0:00:05]}  g4 {[%clk 0:00:08]} 52. c7 {[%clk 0:00:06]}  Kf6 {[%clk 0:00:04]} 53. c8=Q {[%clk 0:00:06]}  Kg5 {[%clk 0:00:05]} 54. Qc5+ {[%clk 0:00:06]}  Kh4 {[%clk 0:00:04]} 55. Qd4 {[%clk 0:00:07]}  Kh3 {[%clk 0:00:04]} 56. Qxa4 {[%clk 0:00:07]}  g3 {[%clk 0:00:04]} 57. Qd7+ {[%clk 0:00:08]}  Kh2 {[%clk 0:00:05]} 58. Qg4 {[%clk 0:00:07]}  Kg2 {[%clk 0:00:05]} 59. a4 {[%clk 0:00:08]}  Kh2 {[%clk 0:00:05]} 60. a5 {[%clk 0:00:09]}  Kg2 {[%clk 0:00:05]} 61. a6 {[%clk 0:00:09]}  Kh2 {[%clk 0:00:04]} 62. a7 {[%clk 0:00:10]}  g2 {[%clk 0:00:04]} 63. a8=Q {[%clk 0:00:10]}  g1=Q+ {[%clk 0:00:04]} 64. Qxg1+ {[%clk 0:00:07]}  Kh3 {[%clk 0:00:03]} 65. Qa2 {[%clk 0:00:08]}  Kh4 {[%clk 0:00:03]} 66. Qah2# {[%clk 0:00:09]} 1-0


[Site "https://www.chess.com"]

[Event "Titled Tuesday Blitz February 28 Late 2023"]
[White "Remolar Gallen, Jose"]
[Black "Kalajzic, Ivan"]
[WhiteFideId "2215187"]
[BlackFideId "14506378"]
[WhiteElo "2223"]
[BlackElo "2203"]
[Result "1-0"]
[Round "11"]
[TimeControl "180+2"]
[Date "2023.02.28"]
[WhiteClock "0:00:07"]
[BlackClock "0:00:03"]

1. e4 {[%clk 0:02:53]}  c6 {[%clk 0:02:59]} 2. d4 {[%clk 0:02:51]}  d5 {[%clk 0:03:00]} 3. e5 {[%clk 0:02:52]}  c5 {[%clk 0:03:00]} 4. dxc5 {[%clk 0:02:51]}  e6 {[%clk 0:03:00]} 5. a3 {[%clk 0:02:52]}  Bxc5 {[%clk 0:03:00]} 6. b4 {[%clk 0:02:52]}  Bf8 {[%clk 0:03:00]} 7. Nf3 {[%clk 0:02:51]}  g6 {[%clk 0:02:55]} 8. Bd3 {[%clk 0:02:47]}  Bg7 {[%clk 0:02:55]} 9. O-O {[%clk 0:02:36]}  Ne7 {[%clk 0:02:54]} 10. Bb2 {[%clk 0:02:35]}  O-O {[%clk 0:02:54]} 11. Nbd2 {[%clk 0:02:35]}  a6 {[%clk 0:02:52]} 12. c4 {[%clk 0:02:33]}  Nbc6 {[%clk 0:02:50]} 13. Qe2 {[%clk 0:02:29]}  Bd7 {[%clk 0:02:32]} 14. Rfd1 {[%clk 0:02:25]}  Rc8 {[%clk 0:02:22]} 15. Rac1 {[%clk 0:02:22]}  Rc7 {[%clk 0:02:11]} 16. Nb3 {[%clk 0:02:11]}  b6 {[%clk 0:01:52]} 17. cxd5 {[%clk 0:01:55]}  Nxd5 {[%clk 0:01:52]} 18. Bxa6 {[%clk 0:01:54]}  Nb8 {[%clk 0:01:33]} 19. Bc4 {[%clk 0:01:40]}  Ba4 {[%clk 0:01:29]} 20. Qe4 {[%clk 0:01:31]}  Rd7 {[%clk 0:01:25]} 21. Rd3 {[%clk 0:01:20]}  Qe7 {[%clk 0:01:04]} 22. Nbd4 {[%clk 0:01:10]}  Rfd8 {[%clk 0:01:01]} 23. h4 {[%clk 0:00:57]}  Bh6 {[%clk 0:01:01]} 24. Re1 {[%clk 0:00:51]}  Nf4 {[%clk 0:01:01]} 25. Rc3 {[%clk 0:00:32]}  Nd5 {[%clk 0:00:54]} 26. Bxd5 {[%clk 0:00:31]}  Rxd5 {[%clk 0:00:53]} 27. Bc1 {[%clk 0:00:28]}  Bg7 {[%clk 0:00:50]} 28. Bg5 {[%clk 0:00:27]}  f6 {[%clk 0:00:42]} 29. exf6 {[%clk 0:00:27]}  Bxf6 {[%clk 0:00:43]} 30. Nxe6 {[%clk 0:00:22]}  Bxg5 {[%clk 0:00:20]} 31. Nfxg5 {[%clk 0:00:22]}  Rd1 {[%clk 0:00:18]} 32. Rc7 {[%clk 0:00:16]}  Rxe1+ {[%clk 0:00:14]} 33. Qxe1 {[%clk 0:00:17]}  Qxc7 {[%clk 0:00:13]} 34. Nxc7 {[%clk 0:00:16]}  Rd1 {[%clk 0:00:14]} 35. Qxd1 {[%clk 0:00:12]}  Bxd1 {[%clk 0:00:15]} 36. Nd5 {[%clk 0:00:09]}  Nd7 {[%clk 0:00:15]} 37. f4 {[%clk 0:00:05]}  Bb3 {[%clk 0:00:15]} 38. Nc3 {[%clk 0:00:03]}  h6 {[%clk 0:00:14]} 39. Nge4 {[%clk 0:00:03]}  Kf7 {[%clk 0:00:14]} 40. Kf2 {[%clk 0:00:03]}  Ke6 {[%clk 0:00:14]} 41. Kf3 {[%clk 0:00:03]}  Nb8 {[%clk 0:00:13]} 42. g4 {[%clk 0:00:03]}  Nc6 {[%clk 0:00:13]} 43. Ke3 {[%clk 0:00:03]}  g5 {[%clk 0:00:12]} 44. hxg5 {[%clk 0:00:02]}  hxg5 {[%clk 0:00:13]} 45. Nxg5+ {[%clk 0:00:02]}  Kd6 {[%clk 0:00:13]} 46. Nge4+ {[%clk 0:00:03]}  Ke6 {[%clk 0:00:12]} 47. Nb5 {[%clk 0:00:04]}  Bc4 {[%clk 0:00:11]} 48. Nd4+ {[%clk 0:00:04]}  Nxd4 {[%clk 0:00:10]} 49. Kxd4 {[%clk 0:00:04]}  Ba2 {[%clk 0:00:10]} 50. f5+ {[%clk 0:00:05]}  Kf7 {[%clk 0:00:09]} 51. Ke5 {[%clk 0:00:05]}  Bb1 {[%clk 0:00:09]} 52. g5 {[%clk 0:00:06]}  Ke7 {[%clk 0:00:07]} 53. Nd6 {[%clk 0:00:05]}  Kd7 {[%clk 0:00:07]} 54. g6 {[%clk 0:00:05]}  Ba2 {[%clk 0:00:06]} 55. f6 {[%clk 0:00:06]}  b5 {[%clk 0:00:02]} 56. Nxb5 {[%clk 0:00:05]}  Kc6 {[%clk 0:00:02]} 57. Nd4+ {[%clk 0:00:05]}  Kd7 {[%clk 0:00:02]} 58. Nf5 {[%clk 0:00:04]}  Ke8 {[%clk 0:00:02]} 59. a4 {[%clk 0:00:04]}  Bc4 {[%clk 0:00:02]} 60. b5 {[%clk 0:00:04]}  Kf8 {[%clk 0:00:02]} 61. b6 {[%clk 0:00:04]}  Ba6 {[%clk 0:00:02]} 62. a5 {[%clk 0:00:05]}  Kg8 {[%clk 0:00:02]} 63. Ne7+ {[%clk 0:00:05]}  Kh8 {[%clk 0:00:02]} 64. g7+ {[%clk 0:00:05]}  Kh7 {[%clk 0:00:02]} 65. g8=Q+ {[%clk 0:00:06]}  Kh6 {[%clk 0:00:03]} 66. Qg6# {[%clk 0:00:07]} 1-0


[Site "https://www.chess.com"]

[Event "Titled Tuesday Blitz February 28 Late 2023"]
[White "Pino Perez, Lazaro"]
[Black "Ferreira, Vitor Hugo Vieira"]
[WhiteFideId "3517055"]
[BlackFideId "2119765"]
[WhiteElo "2170"]
[BlackElo "2146"]
[Result "1-0"]
[Round "11"]
[TimeControl "180+2"]
[Date "2023.02.28"]
[WhiteClock "0:00:07"]
[BlackClock "0:01:29"]

1. d4 {[%clk 0:03:00]}  d5 {[%clk 0:02:59]} 2. Bf4 {[%clk 0:02:59]}  Nf6 {[%clk 0:02:59]} 3. e3 {[%clk 0:02:57]}  c5 {[%clk 0:02:59]} 4. Nf3 {[%clk 0:02:54]}  Nc6 {[%clk 0:02:59]} 5. Nbd2 {[%clk 0:02:50]}  e6 {[%clk 0:02:50]} 6. c3 {[%clk 0:02:47]}  Nh5 {[%clk 0:02:49]} 7. Bg5 {[%clk 0:02:39]}  Be7 {[%clk 0:02:44]} 8. Bxe7 {[%clk 0:02:32]}  Qxe7 {[%clk 0:02:44]} 9. Ne5 {[%clk 0:02:31]}  g6 {[%clk 0:02:44]} 10. Qa4 {[%clk 0:02:16]}  Bd7 {[%clk 0:02:44]} 11. Nxd7 {[%clk 0:02:10]}  Kxd7 {[%clk 0:02:43]} 12. Bb5 {[%clk 0:01:53]}  Rhc8 {[%clk 0:02:42]} 13. Nb3 {[%clk 0:01:45]}  c4 {[%clk 0:02:34]} 14. Na5 {[%clk 0:01:33]}  a6 {[%clk 0:02:24]} 15. Bxc6+ {[%clk 0:01:26]}  bxc6 {[%clk 0:02:24]} 16. O-O {[%clk 0:01:26]}  Rab8 {[%clk 0:02:21]} 17. b3 {[%clk 0:01:20]}  cxb3 {[%clk 0:02:20]} 18. axb3 {[%clk 0:01:21]}  Rb5 {[%clk 0:02:14]} 19. b4 {[%clk 0:01:12]}  Nf6 {[%clk 0:02:08]} 20. Nb3 {[%clk 0:01:00]}  Ra8 {[%clk 0:02:08]} 21. Nc5+ {[%clk 0:00:55]}  Kc8 {[%clk 0:02:07]} 22. Qc2 {[%clk 0:00:50]}  a5 {[%clk 0:02:04]} 23. Ra4 {[%clk 0:00:41]}  Nd7 {[%clk 0:02:01]} 24. Nb3 {[%clk 0:00:33]}  Nb6 {[%clk 0:01:51]} 25. Rxa5 {[%clk 0:00:32]}  Raxa5 {[%clk 0:01:50]} 26. Nxa5 {[%clk 0:00:33]}  Qa7 {[%clk 0:01:43]} 27. Nxc6 {[%clk 0:00:28]}  Qa3 {[%clk 0:01:43]} 28. Na5 {[%clk 0:00:28]}  Nc4 {[%clk 0:01:39]} 29. Nxc4 {[%clk 0:00:26]}  dxc4 {[%clk 0:01:40]} 30. Rb1 {[%clk 0:00:21]}  Rb7 {[%clk 0:01:39]} 31. Qb2 {[%clk 0:00:20]}  Ra7 {[%clk 0:01:31]} 32. g3 {[%clk 0:00:19]}  Qxb2 {[%clk 0:01:26]} 33. Rxb2 {[%clk 0:00:20]}  Ra1+ {[%clk 0:01:26]} 34. Kg2 {[%clk 0:00:20]}  Rc1 {[%clk 0:01:27]} 35. Ra2 {[%clk 0:00:17]}  Rxc3 {[%clk 0:01:26]} 36. Ra7 {[%clk 0:00:17]}  Rc1 {[%clk 0:01:21]} 37. Kf3 {[%clk 0:00:16]}  c3 {[%clk 0:01:21]} 38. Ke2 {[%clk 0:00:16]}  c2 {[%clk 0:01:21]} 39. Kd2 {[%clk 0:00:16]}  Rf1 {[%clk 0:01:21]} 40. Kxc2 {[%clk 0:00:16]}  Rxf2+ {[%clk 0:01:22]} 41. Kd3 {[%clk 0:00:17]}  Rxh2 {[%clk 0:01:23]} 42. Rxf7 {[%clk 0:00:16]}  h5 {[%clk 0:01:23]} 43. Rg7 {[%clk 0:00:16]}  Rg2 {[%clk 0:01:21]} 44. Rxg6 {[%clk 0:00:15]}  h4 {[%clk 0:01:21]} 45. Rxe6 {[%clk 0:00:14]}  hxg3 {[%clk 0:01:21]} 46. Rg6 {[%clk 0:00:14]}  Kd7 {[%clk 0:01:20]} 47. Ke4 {[%clk 0:00:13]}  Ke7 {[%clk 0:01:20]} 48. Kf3 {[%clk 0:00:14]}  Rb2 {[%clk 0:01:21]} 49. Rxg3 {[%clk 0:00:13]}  Rxb4 {[%clk 0:01:22]} 50. Rg5 {[%clk 0:00:13]}  Kf6 {[%clk 0:01:22]} 51. Rc5 {[%clk 0:00:12]}  Rb1 {[%clk 0:01:23]} 52. Ke4 {[%clk 0:00:12]}  Rh1 {[%clk 0:01:22]} 53. Rc6+ {[%clk 0:00:12]}  Ke7 {[%clk 0:01:23]} 54. Kd5 {[%clk 0:00:11]}  Rh5+ {[%clk 0:01:23]} 55. Kc4 {[%clk 0:00:11]}  Rh3 {[%clk 0:01:23]} 56. e4 {[%clk 0:00:11]}  Re3 {[%clk 0:01:24]} 57. e5 {[%clk 0:00:11]}  Re1 {[%clk 0:01:24]} 58. Kd5 {[%clk 0:00:11]}  Ra1 {[%clk 0:01:24]} 59. Rh6 {[%clk 0:00:10]}  Ra5+ {[%clk 0:01:23]} 60. Ke4 {[%clk 0:00:10]}  Ra1 {[%clk 0:01:23]} 61. Rh7+ {[%clk 0:00:09]}  Kf8 {[%clk 0:01:24]} 62. Rb7 {[%clk 0:00:08]}  Re1+ {[%clk 0:01:23]} 63. Kd5 {[%clk 0:00:08]}  Ra1 {[%clk 0:01:23]} 64. e6 {[%clk 0:00:08]}  Ra5+ {[%clk 0:01:23]} 65. Ke4 {[%clk 0:00:08]}  Ra6 {[%clk 0:01:23]} 66. d5 {[%clk 0:00:08]}  Rb6 {[%clk 0:01:24]} 67. Rxb6 {[%clk 0:00:07]}  Ke7 {[%clk 0:01:25]} 68. Rb7+ {[%clk 0:00:07]}  Kd6 {[%clk 0:01:25]} 69. Rd7+ {[%clk 0:00:07]}  Kc5 {[%clk 0:01:26]} 70. e7 {[%clk 0:00:08]}  Kc4 {[%clk 0:01:27]} 71. e8=Q {[%clk 0:00:08]}  Kc3 {[%clk 0:01:28]} 72. Qc8+ {[%clk 0:00:08]}  Kd2 {[%clk 0:01:28]} 73. Qc4 {[%clk 0:00:07]}  Ke1 {[%clk 0:01:29]} 74. Qa2 {[%clk 0:00:07]} 1-0


[Site "https://www.chess.com"]

[Event "Titled Tuesday Blitz February 28 Late 2023"]
[White "Erzhanov, Arman"]
[Black "Sarkar, Justin"]
[WhiteFideId "4138821"]
[BlackFideId "2010011"]
[WhiteElo "2138"]
[BlackElo "2189"]
[Result "1-0"]
[Round "11"]
[TimeControl "180+2"]
[Date "2023.02.28"]
[WhiteClock "0:02:33"]
[BlackClock "0:00:01"]

1. e4 {[%clk 0:03:00]}  c5 {[%clk 0:02:43]} 2. Nf3 {[%clk 0:03:00]}  Nc6 {[%clk 0:02:42]} 3. Bb5 {[%clk 0:03:01]}  Qb6 {[%clk 0:02:31]} 4. Nc3 {[%clk 0:03:00]}  e6 {[%clk 0:02:31]} 5. O-O {[%clk 0:03:01]}  Nge7 {[%clk 0:02:30]} 6. Re1 {[%clk 0:03:01]}  a6 {[%clk 0:02:28]} 7. Bf1 {[%clk 0:03:01]}  g6 {[%clk 0:02:16]} 8. b3 {[%clk 0:03:00]}  Bg7 {[%clk 0:02:15]} 9. Bb2 {[%clk 0:02:59]}  O-O {[%clk 0:02:10]} 10. Na4 {[%clk 0:02:57]}  Qa7 {[%clk 0:02:06]} 11. Bxg7 {[%clk 0:02:56]}  Kxg7 {[%clk 0:02:07]} 12. c4 {[%clk 0:02:54]}  e5 {[%clk 0:01:59]} 13. Nc3 {[%clk 0:02:52]}  d6 {[%clk 0:01:57]} 14. Nd5 {[%clk 0:02:51]}  Nxd5 {[%clk 0:01:53]} 15. cxd5 {[%clk 0:02:49]}  Nd4 {[%clk 0:01:50]} 16. Nxd4 {[%clk 0:02:49]}  cxd4 {[%clk 0:01:49]} 17. Rc1 {[%clk 0:02:49]}  Qb6 {[%clk 0:01:43]} 18. Qc2 {[%clk 0:02:47]}  Bg4 {[%clk 0:01:23]} 19. Qc7 {[%clk 0:02:43]}  Qxc7 {[%clk 0:01:01]} 20. Rxc7 {[%clk 0:02:43]}  Rab8 {[%clk 0:01:02]} 21. f3 {[%clk 0:02:41]}  Rfc8 {[%clk 0:00:52]} 22. Rec1 {[%clk 0:02:38]}  Rxc7 {[%clk 0:00:35]} 23. Rxc7 {[%clk 0:02:39]}  Bc8 {[%clk 0:00:35]} 24. g3 {[%clk 0:02:38]}  g5 {[%clk 0:00:25]} 25. h4 {[%clk 0:02:35]}  h6 {[%clk 0:00:24]} 26. Kh2 {[%clk 0:02:34]}  Kf8 {[%clk 0:00:18]} 27. Bh3 {[%clk 0:02:33]}  Bxh3 {[%clk 0:00:04]} 28. Kxh3 {[%clk 0:02:34]}  Ke8 {[%clk 0:00:02]} 29. Kg4 {[%clk 0:02:34]}  gxh4 {[%clk 0:00:01]} 30. gxh4 {[%clk 0:02:33]} 1-0


[Site "https://www.chess.com"]

[Event "Titled Tuesday Blitz February 28 Late 2023"]
[White "Balla, Tamas-Kristof"]
[Black "Estrada Nieto, Julian"]
[WhiteFideId "1208497"]
[BlackFideId "5101018"]
[WhiteElo "2334"]
[BlackElo "2176"]
[Result "0-1"]
[Round "11"]
[TimeControl "180+2"]
[Date "2023.02.28"]
[WhiteClock "0:00:49"]
[BlackClock "0:00:47"]

1. e4 {[%clk 0:02:58]}  e5 {[%clk 0:03:00]} 2. Nf3 {[%clk 0:02:58]}  Nc6 {[%clk 0:03:00]} 3. d4 {[%clk 0:02:59]}  exd4 {[%clk 0:03:00]} 4. Nxd4 {[%clk 0:02:59]}  Nf6 {[%clk 0:03:00]} 5. Nxc6 {[%clk 0:02:59]}  bxc6 {[%clk 0:03:01]} 6. e5 {[%clk 0:02:59]}  Qe7 {[%clk 0:03:01]} 7. Qe2 {[%clk 0:02:59]}  Nd5 {[%clk 0:03:02]} 8. h4 {[%clk 0:02:58]}  Qe6 {[%clk 0:03:01]} 9. c4 {[%clk 0:02:56]}  Nb6 {[%clk 0:03:01]} 10. b3 {[%clk 0:02:54]}  Bb4+ {[%clk 0:02:54]} 11. Nd2 {[%clk 0:02:53]}  a5 {[%clk 0:02:54]} 12. Bb2 {[%clk 0:02:53]}  a4 {[%clk 0:02:53]} 13. g3 {[%clk 0:02:40]}  a3 {[%clk 0:02:51]} 14. Bd4 {[%clk 0:02:38]}  c5 {[%clk 0:02:46]} 15. Bh3 {[%clk 0:02:31]}  Qc6 {[%clk 0:02:31]} 16. O-O {[%clk 0:02:07]}  Bb7 {[%clk 0:02:13]} 17. Kh2 {[%clk 0:01:24]}  cxd4 {[%clk 0:02:09]} 18. f4 {[%clk 0:01:23]}  O-O {[%clk 0:01:59]} 19. f5 {[%clk 0:01:23]}  Rae8 {[%clk 0:01:48]} 20. f6 {[%clk 0:01:23]}  gxf6 {[%clk 0:01:05]} 21. Qg4+ {[%clk 0:01:18]}  Kh8 {[%clk 0:01:05]} 22. Rxf6 {[%clk 0:01:18]}  Re6 {[%clk 0:00:55]} 23. Raf1 {[%clk 0:01:09]}  Bxd2 {[%clk 0:00:50]} 24. R1f2 {[%clk 0:00:49]}  Qh1# {[%clk 0:00:47]} 0-1


[Site "https://www.chess.com"]